[Event "Fredericia Candidate 2022"]
[Site "Fredericia"]
[Date "2022.05.29"]
[Round "4.3"]
[White "Hoiberg, Nina"]
[Black "Madsen, Michael B."]
[Result "1-0"]
[ECO "B27"]
[WhiteElo "2183"]
[BlackElo "2084"]
[Annotator "TA"]
[PlyCount "65"]
[EventDate "2022.05.25"]
[EventType "swiss"]
[EventCountry "DEN"]
[SourceTitle "playchess.com"]
[Source "ChessBase"]
[SourceQuality "1"]
[TimeControl "40/5400+30:1800+30"]

{[%evp 9,65,15,24,0,5,2,8,0,0,-9,0,-11,-2,-6,8,-13,-6,-12,0,-4,0,0,0,-56,0,0,0,0,27,22,72,56,67,66,67,72,88,78,195,195,187,203,808,783,799,781,763,708,934,902,1797,1387,29988,29983,29983,29984,29984,29985]} 1. e4 {[%emt 0:00:03]} c5 {[%emt 0:00:06]} 2. Nf3 {[%emt 0:00:31]} h6 {[%emt 0:00:12]} 3. d4 {[%emt 0:00:23]} cxd4 {[%emt 0:00:09]} 4. Nxd4 {[%emt 0:00:08]} e5 {[%emt 0:00:08]} 5. Nf3 {[%emt 0:07:07]} Nf6 {[%emt 0:00:12]} 6. Bc4 {[%emt 0:05:16] B27: Sicilian: 2 Nf3, unusual Black 2nd moves.} Nc6 {[%emt 0:02:01]} 7. O-O {[%emt 0:04:19]} Bc5 {[%emt 0:01:09]} 8. Nc3 {[%emt 0:18:36] The position is equal.} d6 {[%emt 0:00:41]} 9. h3 {[%emt 0:13:35]} a6 {[%emt 0:01:05]} 10. Qe2 {[%emt 0:01:44]} O-O {[%emt 0:00:12] [#]} 11. Rd1 $146 {[%emt 0:01:23]} ({Predecessor:} 11. Be3 Bd4 12. Bxd4 exd4 13. Nd5 Re8 14. Nxf6+ Qxf6 15. Bd5 Nb4 16. Bb3 {½-½ (30) Petenyi,T (2452)-Druska,J (2383) Martin 2013}) 11... b5 {[%emt 0:10:55]} 12. Bd5 {[%emt 0:03:51]} Qb6 {[%emt 0:11:55]} 13. a4 {[%emt 0:06:26][%cal Ra4b5]} b4 {[%emt 0:04:09]} 14. a5 $1 {[%emt 0:00:55]} Qc7 {[%emt 0:06:58]} 15. Na4 $36 {[%emt 0:03:03][%mdl 2048] White fights for an advantage.} Nxd5 {[%emt 0:00:29]} 16. exd5 {[%emt 0:05:22]} (16. Rxd5 $11 Ne7 17. Rd1) 16... Nd4 {[%emt 0:02:02]} ({Black should try} 16... Nxa5 $15 17. Nxc5 Qxc5) 17. Nxd4 $11 {[%emt 0:07:41]} Bxd4 {[%emt 0:00:11]} 18. Be3 {[%emt 0:04:29]} Bxe3 {[%emt 0:00:17]} 19. Qxe3 {[%emt 0:00:58]} Qxc2 {[%emt 0:01:48]} (19... f5 $11 {remains equal.}) 20. Rdc1 $16 {[%emt 0:00:58]} Qg6 {[%emt 0:00:19]} 21. Nb6 {[%emt 0:00:34]} Rb8 {[%emt 0:00:08]} 22. Rc4 {[%emt 0:00:43]} Bf5 {[%emt 0:01:13]} 23. Rxb4 {[%emt 0:01:35]} Bd3 {[%emt 0:03:35]} (23... Rb7 $16) 24. Rg4 $18 {[%emt 0:01:17]} Qf5 {[%emt 0:00:13]} 25. Rg3 {[%emt 0:00:18]} ({Wrong is} 25. Qxh6 $2 Qxg4 $3 {[%mdl 512]} 26. Qxd6 Qg5 $19) 25... Rxb6 $2 {[%emt 0:02:48]} (25... Bb5 26. Qxh6 g6) 26. axb6 {[%emt 0:00:16]} e4 {[%emt 0:00:08]} 27. Qxh6 {[%emt 0:02:05][%csl Gh6][%cal Rg3g7]} Qe5 {[%emt 0:00:08]} 28. Qd2 {[%emt 0:00:53]} Qxd5 {[%emt 0:00:26] [#]} 29. Rxa6 $3 {[%emt 0:00:23][%mdl 512] Hoping for Ra5.} Qb5 {[%emt 0:01:09]} (29... e3 30. Rxe3) 30. Ra5 {[%emt 0:03:08][%cal Od2h6] White wants to mate with Qh6!} Qxb6 {[%emt 0:01:05] [#]} 31. Rxg7+ $3 {[%emt 0:00:44][%mdl 512] White mates.} Kxg7 {[%emt 0:00:07] [#]} 32. Qg5+ $1 {[%emt 0:00:05]} Kh7 {[%emt 0:00:10]} 33. Qh4+ {[%emt 0:00:06] Weighted Error Value: White=0.08 (flawless) /Black=0.42} 1-0

[Event "Fredericia Candidate 2022"]
[Site "Fredericia"]
[Date "2022.05.29"]
[Round "4.4"]
[White "Pedersen, Lars Wilton"]
[Black "Zander, Emil"]
[Result "1/2-1/2"]
[ECO "A00"]
[WhiteElo "2006"]
[BlackElo "2018"]
[Annotator "TA"]
[PlyCount "25"]
[EventDate "2022.05.25"]
[EventType "swiss"]
[EventCountry "DEN"]
[SourceTitle "playchess.com"]
[Source "ChessBase"]
[SourceQuality "1"]
[TimeControl "40/5400+30:1800+30"]

{[%evp 9,25,-12,-16,-18,-11,-29,-24,-41,-31,-27,-24,-35,-8,-15,-15,-25,-15,-25]} 1. a3 {[%emt 0:00:42]} g6 {[%emt 0:05:55]} 2. g3 {[%emt 0:00:40]} Bg7 {[%emt 0:00:51]} 3. Bg2 {[%emt 0:00:07]} d5 {[%emt 0:00:07]} 4. Nf3 {[%emt 0:00:18]} e5 {[%emt 0:01:27]} 5. d3 {[%emt 0:00:09]} Ne7 {[%emt 0:05:17]} 6. O-O {[%emt 0:00:16] A00: Irregular Openings.} O-O {[%emt 0:01:11]} 7. c4 {[%emt 0:05:11]} c6 {[%emt 0:00:38] [#]} 8. Qc2 $146 {[%emt 0:00:48] Black has an edge.} ({Predecessor:} 8. Nbd2 a5 9. Qc2 a4 10. Rb1 h6 11. e4 Be6 12. b3 axb3 13. Rxb3 Ra7 14. Re1 {0-1 (26) Knudsen,P (2355)-Fries Nielsen,J (2320) Aarhus 1981}) 8... h6 {[%emt 0:00:34]} 9. Nc3 {[%emt 0:01:14]} Be6 {[%emt 0:00:24]} 10. b3 {[%emt 0:04:54]} f5 {[%emt 0:06:27]} 11. e3 {[%emt 0:05:40]} Nd7 {[%emt 0:03:41]} 12. Bb2 {[%emt 0:03:24]} g5 {[%emt 0:02:54]} 13. Rae1 {Weighted Error Value: White=0.06 (flawless) /Black=0.06 (flawless)} 1/2-1/2

[Event "Fredericia Candidate 2022"]
[Site "Fredericia"]
[Date "2022.05.29"]
[Round "4.5"]
[White "Stentebjerg-Hansen, Per"]
[Black "Andries, Alf"]
[Result "0-1"]
[ECO "A45"]
[WhiteElo "2191"]
[BlackElo "2049"]
[Annotator "TA"]
[PlyCount "76"]
[EventDate "2022.05.25"]
[EventType "swiss"]
[EventCountry "DEN"]
[SourceTitle "playchess.com"]
[Source "ChessBase"]
[SourceQuality "1"]
[TimeControl "40/5400+30:1800+30"]

{[%evp 9,76,0,0,0,0,-10,-8,-10,-7,-11,-4,-25,0,-31,-30,-24,-3,-30,-10,-73,-65,-80,-58,-63,-62,-66,-39,-31,-27,-120,-35,-202,-111,-297,-310,-317,-302,-581,-595,-650,-627,-737,-643,-633,-479,-465,-75,-100,-7,0,-19,-79,-75,-76,-75,-101,-77,-127,-50,-60,-44,-41,-40,-109,-85,-251,-244,-29997,-29998]} 1. d4 {[%emt 0:00:01]} Nf6 {[%emt 0:00:10]} 2. Nc3 {[%emt 0:00:06]} d5 {[%emt 0:00:03]} 3. Bf4 {[%emt 0:00:06]} c5 {[%emt 0:00:04]} 4. e3 {[%emt 0:00:04]} cxd4 {[%emt 0:00:04]} 5. exd4 {[%emt 0:00:04]} a6 {[%emt 0:00:05]} 6. Nf3 {[%emt 0:00:06] B13: Caro-Kann: Exchange Variation and Panov-Botvinnik Attack.} Nc6 {[%emt 0:00:05]} 7. Qd2 {[%emt 0:00:03]} Bf5 {[%emt 0:00:33]} 8. Bd3 {[%emt 0:00:52] The position is equal.} Bxd3 {[%emt 0:00:47]} 9. Qxd3 {[%emt 0:02:51]} e6 {[%emt 0:00:22]} 10. O-O {[%emt 0:02:57]} Bd6 {[%emt 0:00:20] [#]} 11. Bg5 $146 {[%emt 0:05:23]} ({Predecessor:} 11. Be5 O-O 12. a3 h6 13. Rfe1 Ng4 14. Bxd6 Qxd6 15. h3 Nf6 16. Ne5 Rac8 17. f4 {½-½ (41) Kapoor,S (1771)-Jackson,J (1595) Penang 2019}) 11... h6 {[%emt 0:01:52]} 12. Bh4 {[%emt 0:00:58]} O-O {[%emt 0:02:35]} 13. Rfe1 {[%emt 0:06:00]} Be7 {[%emt 0:01:53]} 14. Ne5 {[%emt 0:02:48]} (14. Bxf6 $11 Bxf6 15. Ne2) 14... Nxe5 $17 {[%emt 0:02:29]} 15. dxe5 {[%emt 0:04:35] [#]} Nd7 {[%emt 0:00:11]} 16. Bxe7 {[%emt 0:01:15]} Qxe7 {[%emt 0:00:25]} 17. f4 {[%emt 0:02:53]} g6 {[%emt 0:01:52]} 18. Kh1 {[%emt 0:02:00]} Qb4 {[%emt 0:07:18]} 19. Qg3 {[%emt 0:20:01]} (19. Ne2 $11) 19... Kh7 {[%emt 0:00:34]} (19... Qxb2 $17 {Threatens to win with ...Rac8.} 20. Rab1 Qxc2) 20. Rf1 $2 {[%emt 0:21:07]} (20. Nd1 $15) 20... Rac8 {[%emt 0:05:47]} (20... Qxb2 $19 {And now ...Rfc8 would win.} 21. Qh3 Rad8) 21. Rf3 $2 {[%emt 0:02:10]} (21. Rab1 $17 {was worth a try.}) 21... Qxb2 $19 {[%emt 0:02:17]} 22. Raf1 {[%emt 0:01:49]} Qxc2 {[%emt 0:00:51]} 23. Nxd5 $2 {[%emt 0:00:44]} (23. h3) 23... exd5 {[%emt 0:00:13]} 24. f5 {[%emt 0:00:40]} gxf5 {[%emt 0:01:09] White must now prevent ...Rg8.} 25. Qh3 {[%emt 0:00:43]} Rc6 {[%emt 0:11:24]} 26. Rxf5 {[%emt 0:01:20]} Kg7 {[%emt 0:04:40]} 27. Qf3 {[%emt 0:04:11][%cal Rf5f7]} Nxe5 {[%emt 0:00:34]} 28. Rxe5 $17 {[%emt 0:00:52]} Qg6 {[%emt 0:01:15]} (28... Qxa2 $17 29. Re2 (29. Re8 d4 $17) 29... Qc4) 29. Qxd5 $11 {[%emt 0:02:12]} Rf6 {[%emt 0:01:07][%cal Rf6f1]} 30. Rfe1 {[%emt 0:00:36]} (30. Ree1 $11 {keeps the balance.}) 30... b5 $17 {[%emt 0:02:34]} 31. Qd4 {[%emt 0:02:45]} Kh7 {[%emt 0:00:36]} 32. R5e3 {[%emt 0:00:32]} Rf5 $40 {[%emt 0:01:04][%mdl 128] Black has strong attack.} 33. Qa7 {[%emt 0:03:58]} (33. a4 $142) 33... Rg5 {[%emt 0:01:27]} ({Better is} 33... Rd8 $17 {Hoping for ...Rd2.} 34. R3e2 Qf6) 34. Qb7 {[%emt 0:01:01]} Rg8 {[%emt 0:00:25][%cal Rg5g2]} 35. Re6 $1 {[%emt 0:01:02]} Qf5 {[%emt 0:02:18]} 36. R6e2 {[%emt 0:06:24]} ({White should try} 36. R6e5 $1 $15 Qg6 37. Rxg5 hxg5 38. Rf1) 36... Qd5 {[%emt 0:01:31]} 37. Qc7 {[%emt 0:01:36]} (37. Qxd5 $17 Rxd5 38. Rf2) 37... Rxg2 $19 {[%emt 0:00:44][%cal Rg2e2]} 38. Re4 {[%emt 0:01:27] [#]} (38. Qc2+ $19 R2g6+ 39. Qe4 Qxe4+ 40. Rxe4) 38... Rg1+ $3 {[%emt 0:00:18][%mdl 512] Weighted Error Value: White=0.68/Black=0.42} 0-1

[Event "Fredericia Candidate 2022"]
[Site "Fredericia"]
[Date "2022.05.29"]
[Round "4.6"]
[White "Hye, Allan"]
[Black "Petersen, Steen"]
[Result "1-0"]
[ECO "E25"]
[WhiteElo "2072"]
[BlackElo "2103"]
[Annotator "TA"]
[PlyCount "65"]
[EventDate "2022.05.25"]
[EventType "swiss"]
[EventCountry "DEN"]
[SourceTitle "playchess.com"]
[Source "ChessBase"]
[SourceQuality "1"]
[TimeControl "40/5400+30:1800+30"]

{[%evp 14,65,0,0,0,0,6,8,41,28,42,33,33,22,50,0,8,7,7,10,14,19,45,44,93,78,100,87,50,42,156,147,237,247,305,181,1122,1129,1126,1122,1114,1113,1079,1091,2016,1826,29985,29986,29996,29997,29997,29998,29998,29999]} 1. c4 {[%emt 0:00:06]} Nf6 {[%emt 0:01:50]} 2. Nc3 {[%emt 0:00:08]} e6 {[%emt 0:01:05]} 3. d4 {[%emt 0:01:20]} Bb4 {[%emt 0:00:16]} 4. f3 {[%emt 0:00:11]} d5 {[%emt 0:01:11]} 5. a3 {[%emt 0:00:18]} Bxc3+ {[%emt 0:00:37]} 6. bxc3 {[%emt 0:00:03]} c5 {[%emt 0:01:47]} 7. cxd5 {[%emt 0:02:18]} exd5 {[%emt 0:01:37]} 8. e3 {[%emt 0:00:52]} c4 {[%emt 0:15:42] E25: Nimzo-Indian: Sämisch: 5...c5 6 f3 d5 7 cxd5.} 9. Ne2 {[%emt 0:06:57]} O-O {[%emt 0:06:36]} 10. g4 {[%emt 0:01:41]} Re8 {[%emt 0:02:17][%cal Oc8g4] The position is equal.} 11. Bg2 {[%emt 0:08:05]} Nc6 {[%emt 0:04:45][%cal Bb8c6,Bc6a5,Ba5b3][%mdl 32]} 12. O-O {[%emt 0:08:51]} Na5 {[%emt 0:09:26]} 13. Ng3 {[%emt 0:07:22]} h6 {[%emt 0:02:42] [#]} 14. g5 $146 {[%emt 0:13:12]} ({Predecessor:} 14. h3 h5 15. Ra2 h4 16. Ne2 Nb3 17. Nf4 b5 18. e4 Bb7 19. e5 Nd7 20. Ne2 Nxc1 21. Qxc1 {1-0 (26) Van Schyndel,A (2256)-Matozo,P (2119) ICCF email 2011}) 14... hxg5 {[%emt 0:01:38]} 15. e4 {[%emt 0:08:22]} Nh7 {[%emt 0:01:23]} 16. e5 {[%emt 0:09:09]} Nb3 {[%emt 0:07:55]} 17. Ra2 {[%emt 0:00:43]} Be6 {[%emt 0:03:36]} 18. Be3 {[%emt 0:02:53]} Nf8 {[%emt 0:03:48]} (18... f5 $14 19. exf6 (19. f4 g4 $11) 19... Bf7) 19. f4 $16 {[%emt 0:03:51]} gxf4 {[%emt 0:00:06]} 20. Bxf4 {[%emt 0:00:46]} Ng6 {[%emt 0:00:22]} 21. Be3 {[%emt 0:09:40][%mdl 1024] White has compensation.} Qa5 {[%emt 0:15:50] [#]} (21... Qh4 $14) 22. Qe1 $1 {[%emt 0:02:45]} Rad8 {[%emt 0:07:40]} (22... b5 $16) 23. Bg5 $18 {[%emt 0:01:34]} Rd7 {[%emt 0:05:11]} 24. Nh5 {[%emt 0:00:10]} (24. Qe3 $142) 24... f6 $2 {[%emt 0:00:24]} (24... Nxd4 25. cxd4 Qxe1 26. Rxe1 Bg4) 25. exf6 {[%emt 0:00:56]} Bf7 {[%emt 0:00:43]} 26. Qg3 {[%emt 0:00:46]} Qc7 {[%emt 0:00:38]} 27. fxg7 {[%emt 0:01:23] [#] White threatens Qh3 and mate.} Qxg3 {[%emt 0:00:16]} 28. hxg3 {[%emt 0:00:02]} Rd6 {[%emt 0:01:17]} 29. Raf2 {[%emt 0:00:49][%cal Ba2f2,Bf2f7,Bf7f8,Bf8h8][%mdl 32]} Ne5 {[%emt 0:02:22]} 30. dxe5 {[%emt 0:01:17] White mates.} Rxe5 {[%emt 0:00:02]} 31. Rxf7 {[%emt 0:00:29]} Rxg5 {[%emt 0:00:02]} 32. Rf8+ {[%emt 0:00:24]} Kh7 {[%emt 0:00:02]} 33. Rh8+ {[%emt 0:00:10] Weighted Error Value: White=0.08 (flawless) /Black=0.57} 1-0

[Event "Fredericia Candidate 2022"]
[Site "Fredericia"]
[Date "2022.05.29"]
[Round "5.1"]
[White "Motzkus, Mikkel"]
[Black "Medhus, Vitus Bondo"]
[Result "1-0"]
[ECO "A57"]
[WhiteElo "1993"]
[BlackElo "2100"]
[Annotator "TA"]
[PlyCount "47"]
[EventDate "2022.05.25"]
[EventType "swiss"]
[EventCountry "DEN"]
[SourceTitle "playchess.com"]
[Source "ChessBase"]
[SourceQuality "1"]
[TimeControl "40/5400+30:1800+30"]

{[%evp 9,47,31,47,8,64,67,77,77,67,47,55,81,54,62,67,20,17,4,4,10,24,8,6,0,0,5,11,15,20,0,526,521,515,498,624,601,627,633,594,575]} 1. d4 {[%emt 0:00:04][%cal Bd2d4,Bd4d5][%mdl 32]} Nf6 {[%emt 0:00:07]} 2. c4 {[%emt 0:00:10]} c5 {[%emt 0:00:24]} 3. d5 {[%emt 0:00:33]} b5 {[%emt 0:00:09]} 4. Qc2 {[%emt 0:01:04]} d6 {[%emt 0:01:30]} 5. e4 {[%emt 0:00:49]} b4 {[%emt 0:00:15]} 6. f4 {[%emt 0:05:29] [#] A57: Benko/Volga Gambit.} e6 $146 {[%emt 0:06:41]} (6... g6 $11) ({Predecessor:} 6... g6 7. Nf3 Bg7 8. Bd3 O-O 9. O-O Nbd7 10. h3 e6 11. Be3 Bb7 12. Nbd2 Qc7 {1-0 (62) Caruana,F (2835)-Gelman,A (2403) Chess.com INT 2020}) 7. Nf3 $14 {[%emt 0:04:32]} exd5 {[%emt 0:00:24]} 8. cxd5 {[%emt 0:00:11] White is better.} Qe7 {[%emt 0:01:17][%csl LRd5,LRe4]} 9. Bb5+ {[%emt 0:06:30]} (9. Bd3 $5 {[%cal Re1g1]}) 9... Bd7 {[%emt 0:01:19]} 10. Bxd7+ {[%emt 0:01:19]} Nbxd7 {[%emt 0:00:49]} 11. O-O $1 {[%emt 0:00:29] [#] Black must now prevent Nbd2.} g6 $1 {[%emt 0:01:15]} (11... Qxe4 $2 12. Re1 Qxe1+ 13. Nxe1 $18) 12. Nbd2 {[%emt 0:03:44]} (12. Re1 $14) 12... Bg7 $1 $11 {[%emt 0:00:38]} 13. Rb1 {[%emt 0:02:37]} O-O {[%emt 0:01:37]} 14. b3 {[%emt 0:00:22]} a5 {[%emt 0:07:44][%cal Oa5a4]} 15. Bb2 {[%emt 0:05:25]} Nb6 {[%emt 0:02:46]} 16. Rfe1 {[%emt 0:04:35]} a4 {[%emt 0:00:56]} 17. Nc4 {[%emt 0:02:30]} axb3 {[%emt 0:03:53]} 18. axb3 {[%emt 0:00:39]} Nxc4 {[%emt 0:00:12]} 19. bxc4 {[%emt 0:02:38]} Ra2 $2 {[%emt 0:00:19][%mdl 8192] [#]} (19... Nd7 $11 {and Black is okay.}) 20. Bxf6 $18 {[%emt 0:06:39] White is clearly winning.} Qa7 {[%emt 0:00:09]} 21. Rb2 {[%emt 0:01:24]} b3 {[%emt 0:02:15]} 22. Qc3 {[%emt 0:07:11]} Bxf6 {[%emt 0:02:03]} 23. Qxf6 {[%emt 0:00:12]} Rb8 {[%emt 0:01:30]} 24. Reb1 {Weighted Error Value: White=0.08 (flawless) /Black=0.47} 1-0

[Event "Fredericia Candidate 2022"]
[Site "Fredericia"]
[Date "2022.05.29"]
[Round "5.2"]
[White "Loftgaard, Mikkel Vinh"]
[Black "Hoiberg, Nina"]
[Result "1-0"]
[ECO "C45"]
[WhiteElo "2072"]
[BlackElo "2183"]
[Annotator "TA"]
[PlyCount "55"]
[EventDate "2022.05.25"]
[EventType "swiss"]
[EventCountry "DEN"]
[SourceTitle "playchess.com"]
[Source "ChessBase"]
[SourceQuality "1"]
[TimeControl "40/5400+30:1800+30"]

{[%evp 11,55,8,43,37,59,36,188,186,200,203,377,362,295,188,185,189,191,206,230,233,236,242,229,242,247,247,256,243,293,274,414,427,407,389,568,563,674,633,946,894,943,936,891,866,1516,1477]} 1. e4 {[%emt 0:00:21]} e5 {[%emt 0:00:09]} 2. Nf3 {[%emt 0:00:04]} Nc6 {[%emt 0:00:30]} 3. d4 {[%emt 0:00:25]} exd4 {[%emt 0:00:09]} 4. Nxd4 {[%emt 0:00:09]} Bc5 {[%emt 0:00:40]} 5. Nxc6 {[%emt 0:00:19]} Qf6 {[%emt 0:00:22]} 6. Qf3 {[%emt 0:00:07]} Qxc6 {[%emt 0:01:52]} 7. Nc3 {[%emt 0:01:18] C45: Scotch Game.} Nf6 {[%emt 0:02:28]} 8. Bb5 {[%emt 0:05:53]} Qb6 {[%emt 0:07:46] [#]} ({Better is} 8... Qe6 $1 $14) 9. e5 $1 $18 {[%emt 0:02:43] White is clearly better.} Qe6 {[%emt 0:02:20]} 10. O-O {[%emt 0:01:58]} Ng4 {[%emt 0:00:52]} (10... Qxe5 11. Bf4 Qh5) 11. Nd5 {[%emt 0:07:42]} Bb6 {[%emt 0:07:02] [#]} 12. Nxb6 $146 {[%emt 0:01:09]} ({Predecessor:} 12. Bf4 O-O 13. Rae1 c6 14. Nxb6 axb6 15. Bd3 Rxa2 16. Re4 Ra5 17. Rfe1 b5 18. Bd2 Ra4 19. Rxa4 bxa4 20. Bf5 Nxe5 21. Qh3 {1-0 (21) Valeggia,R-Sartori,S Venice 1981}) 12... axb6 {[%emt 0:00:22]} 13. Bf4 {[%emt 0:01:41]} O-O {[%emt 0:01:31]} 14. Rfe1 {[%emt 0:00:57]} Ra5 {[%emt 0:05:55]} 15. a4 {[%emt 0:01:24]} Nh6 {[%emt 0:08:57]} 16. Bd3 {[%emt 0:04:54]} Qg4 {[%emt 0:16:17]} 17. Qe4 {[%emt 0:07:16][%csl Gd3][%cal Re4h7] [#]} Qg6 {[%emt 0:00:15]} 18. Qc4 {[%emt 0:05:34]} Qc6 {[%emt 0:03:46]} 19. Qd4 {[%emt 0:03:22]} d5 {[%emt 0:13:52]} 20. exd6 {[%emt 0:01:13]} Rd5 {[%emt 0:01:15]} (20... Nf5 $142 21. Bxf5 Bxf5 22. dxc7 Rd5) 21. Qb4 {[%emt 0:01:06]} ({Not} 21. Qe4 Bf5 22. Qe7 Bxd3 $16) 21... g5 {[%emt 0:08:09]} 22. Bg3 {[%emt 0:01:28]} ({Stronger than} 22. Qe4 Bf5 23. Qe7 Bxd3 $11) 22... Bf5 {[%emt 0:09:32]} (22... Nf5 {was worth a try.} 23. dxc7 Nxg3 24. hxg3 (24. fxg3 Qc5+ 25. Qxc5 Rxc5 $18) 24... Be6) 23. dxc7 {[%emt 0:01:46] White is clearly winning.} Bxd3 {[%emt 0:04:38]} 24. cxd3 {[%emt 0:00:37]} Nf5 {[%emt 0:00:11]} 25. Rac1 {[%emt 0:01:17]} Rc5 {[%emt 0:02:00]} 26. Rxc5 {[%emt 0:01:22]} bxc5 {[%emt 0:00:41]} 27. Qg4 {[%emt 0:00:48][%csl LRf5,LRg5]} Qg6 {[%emt 0:00:31]} 28. Re5 {[%emt 0:00:32][%csl LRc5,LRf5] Black got outplayed after the opening.  Weighted Error Value: White=0.06 (flawless) /Black=0.63} 1-0